Workbook

Sheet Excel
A6: No of Iteration | C6: 1 | E6: 2 | G6: 3 | I6: 4 | K6: 5 | M6: 6 | O6: 7 | Q6: 8
A7: X | B7: Guess | C7: xc1 | D7: error | E7: xc2 | F7: error | G7: xc3 | H7: error | I7: xc4 | J7: error | K7: xc5 | L7: error | M7: xc6 | N7: error | O7: xc7 | P7: error | Q7: xc8 | R7: error
A8: x1 | B8: 1 | C8: =(1-3*B9+5*B10)/12 -> 0.5 | D8: =(C8-B8)/C8 -> -1 | E8: =(1-3*C9+5*C10)/12 -> 0.1467948718 | F8: =(E8-C8)/E8 -> -2.406113537 | G8: =(1-3*E9+5*E10)/12 -> 0.7427506575 | H8: =(G8-E8)/G8 -> 0.8023631883 | I8: =(1-3*G9+5*G10)/12 -> 0.9467525045 | J8: =(I8-G8)/I8 -> 0.2154753709 | K8: =(1-3*I9+5*I10)/12 -> 0.9917700139 | L8: =(K8-I8)/K8 -> 0.0453910774 | M8: =(1-3*K9+5*K10)/12 -> 0.9991948152 | N8: =(M8-K8)/M8 -> 0.007430784446 | O8: =(1-3*M9+5*M10)/12 -> 1.00002578 | P8: =(O8-M8)/O8 -> 0.0008309431535 | Q8: =(1-3*O9+5*O10)/12 -> 1.000036168 | R8: =(Q8-O8)/Q8 -> 1.038741081e-05
A9: x2 | B9: 0 | C9: =(28-3*B10-C8)/5 -> 4.9 | D9: =(C9-B9)/C9 -> 1 | E9: =(28-3*C10-E8)/5 -> 3.71525641 | F9: =(E9-C9)/E9 -> -0.3188860899 | G9: =(28-3*E10-G8)/5 -> 3.164396614 | H9: -0.1740805162 | I9: =(28-3*G10-I8)/5 -> 3.028143112 | J9: -0.04499572756 | K9: =(28-3*I10-K8)/5 -> 3.003365657 | L9: =(K9-I9)/K9 -> -0.008249896107 | M9: =(28-3*K10-M8)/5 -> 3.000108867 | N9: -0.001085557422 | O9: =(28-3*M10-O8)/5 -> 2.999918529 | P9: -6.344750375e-05 | Q9: =(28-3*O10-Q8)/5 -> 2.999970015 | R9: 1.716199598e-05
A10: x3 | B10: 1 | C10: =(76-7*C9-3*C8)/13 -> 3.092307692 | D10: =(C10-B10)/C10 -> 0.6766169154 | E10: =(76-7*E9-3*E8)/13 -> 3.811755424 | F10: 0.1887444633 | G10: =(76-7*G9-3*G8)/13 -> 3.970843979 | H10: 0.04006416669 | I10: =(76-7*I9-3*I8)/13 -> 3.9971339 | J10: 0.006577193034 | K10: =(76-7*K9-3*K8)/13 -> 4.000086951 | L10: =(K10-I10)/K10 -> 0.0007382465309 | M10: =(76-7*M9-3*M8)/13 -> 4.000127191 | N10: 1.005985809e-05 | O10: =(76-7*O9-3*O8)/13 -> 4.00003792 | P10: -2.231771786e-05 | Q10: =(76-7*Q9-3*Q8)/13 -> 4.0000078 | R10: -7.530017485e-06
A15: 12 | B15: 3 | C15: -5 | D15: a1 | E15: 1
A16: 1 | B16: 5 | C16: 3 | D16: a2 | E16: 28
A17: 3 | B17: 7 | C17: 13 | D17: a3 | E17: 76
A19: 12 | B19: 3 | C19: -5 | D19: 1 | E19: 1
A20: 1 | B20: 5 | C20: 3 | D20: 0 | E20: 28
A21: 3 | B21: 7 | C21: 13 | D21: 1 | E21: 76
C23: =(1-3*0+5*1)/12 -> 0.5 | D23: -5
D24: 3
D25: 13

Sheet VBA
A7: 12 | B7: 3 | C7: -5 | D7: x1 | E7: 1 | G7: 1
A8: 1 | B8: 5 | C8: 3 | D8: x2 | E8: 28 | G8: 0
A9: 3 | B9: 7 | C9: 13 | D9: x3 | E9: 76 | G9: 1
A10: A | D10: X | E10: B | G10: Guess
B13: x1
B14: x2
B15: x3

Sheet Sheet1
A1: 1 | B1: 1 | C1: 1 | D1: 1 | E1: 1 | F1: 1 | G1: 1 | H1: 1 | I1: 1 | J1: a | K1: 9 | M1: 1
A2: 2 | B2: 2 | C2: 2 | D2: 2 | E2: 2 | F2: 2 | G2: 2 | H2: 2 | I2: 2 | J2: b | K2: 8 | M2: 1
A3: 3 | B3: 3 | C3: 3 | D3: 3 | E3: 3 | F3: 3 | G3: 3 | H3: 3 | I3: 3 | J3: c | K3: 7 | M3: 1
A4: 4 | B4: 4 | C4: 4 | D4: 4 | E4: 4 | F4: 4 | G4: 4 | H4: 4 | I4: 4 | J4: d | K4: 6 | M4: 1
A5: 5 | B5: 5 | C5: 5 | D5: 5 | E5: 5 | F5: 5 | G5: 5 | H5: 5 | I5: 5 | J5: e | K5: 5 | M5: 1
A6: 6 | B6: 6 | C6: 6 | D6: 6 | E6: 6 | F6: 6 | G6: 6 | H6: 6 | I6: 6 | J6: f | K6: 4 | M6: 1
A7: 7 | B7: 7 | C7: 7 | D7: 7 | E7: 7 | F7: 7 | G7: 7 | H7: 7 | I7: 7 | J7: g | K7: 3 | M7: 1
A8: 8 | B8: 8 | C8: 8 | D8: 8 | E8: 8 | F8: 8 | G8: 8 | H8: 8 | I8: 8 | J8: h | K8: 2 | M8: 1
A9: 9 | B9: 9 | C9: 9 | D9: 9 | E9: 9 | F9: 9 | G9: 9 | H9: 9 | I9: 9 | J9: i | K9: 1 | M9: 1
